bitfinex-derivatives/quotes_SOLF0:USTF0_20240830
["timestamp","ask_amount","ask_price","bid_price","bid_amount"]
[1724979088177,3.5565,140.57,140.53,3.5574]
[1724979088776,3.5562,140.58,140.53,10.95]
[1724979088979,85.12282594,140.6,140.53,10.95]
[1724979088980,85.12282594,140.6,140.55,10.95]
[1724979089183,85.12282594,140.6,140.56,0.05171416]
[1724979089479,85.12282594,140.6,140.56,3.60811416]
[1724979089679,85.12282594,140.6,140.56,14.55811416]
[1724979090075,88.67862594,140.6,140.56,14.55811416]
[1724979092381,85.12282594,140.6,140.57,3.5563]
[1724979094986,88.67842594,140.6,140.57,3.5563]
[1724979095891,88.67842594,140.6,140.56,14.55821416]
[1724979101494,3.5556,140.6,140.56,14.55821416]
[1724979101888,9.79034479,140.63,140.56,11.00171416]
[1724979102289,3.5554,140.61,140.56,14.55811416]
[1724979103792,3.5557,140.6,140.56,3.60811416]
[1724979103985,3.5557,140.6,140.56,14.55811416]
[1724979104187,3.5557,140.6,140.56,3.60811416]
[1724979105485,3.5562,140.58,140.56,0.05171416]
[1724979105697,4.85539416,140.63,140.48,1.3238]
[1724979105698,10.95,140.57,140.48,1.3238]
[1724979106003,10.95,140.55,140.47,15.71]
[1724979106192,3.5575,140.53,140.47,19.2687]
[1724979106391,3.49171993,140.54,140.47,19.2687]
[1724979106591,3.5577,140.52,140.48,3.5586]
[1724979106791,4.76,140.56,140.49,10.99922248]
[1724979106792,0.05171416,140.51,140.49,10.99922248]
[1724979106991,0.04628209,140.51,140.49,10.99922248]
[1724979108192,0.04628209,140.51,140.49,14.55742248]
[1724979108498,0.04628209,140.51,140.5,10.95]
[1724979109002,4.76,140.58,140.5,10.95]
[1724979109193,15.71,140.59,140.52,10.95]
[1724979109389,10.95,140.59,140.52,10.95]
[1724979109694,10.95,140.59,140.52,14.5076]
[1724979109695,3.5568,140.56,140.52,14.5076]
[1724979109894,3.5568,140.56,140.53,0.05153603]
[1724979110787,3.5568,140.56,140.53,3.60893603]
[1724979115204,12.3035,140.62,140.55,10.95]
[1724979115407,12.3035,140.62,140.57,0.04650406]
[1724979115702,17.0635,140.62,140.57,0.04650406]
[1724979116297,3.5558,140.6,140.57,0.04650406]
[1724979116708,10.95,140.6,140.57,0.04650406]
[1724979116908,3.556,140.59,140.57,0.04650406]
[1724979118196,3.5557,140.6,140.57,0.04650406]
[1724979120209,17.0635,140.62,140.57,0.04650406]
[1724979120210,3.5559,140.59,140.57,0.04650406]
[1724979120508,17.0035,140.62,140.57,0.04650406]
[1724979120708,3.5558,140.6,140.57,0.04650406]
[1724979121206,17.0035,140.62,140.57,0.04650406]
[1724979121405,3.5559,140.59,140.57,0.04650406]
[1724979122401,17.0035,140.62,140.57,0.04650406]
[1724979122402,3.5557,140.6,140.57,0.04650406]
[1724979124014,3.5555,140.61,140.57,3.60280406]
[1724979125108,3.5553,140.62,140.58,14.5061]
[1724979125312,15.65,140.64,140.58,14.5061]
[1724979125313,15.65,140.64,140.58,10.95]
[1724979125513,19.25586521,140.64,140.58,10.95]
[1724979126016,10.95,140.59,140.35,16.87065124]
[1724979126310,10.95,140.54,140.47,10.95]
[1724979126509,19.12572551,140.55,140.48,10.95]
[1724979126705,15.65,140.56,140.48,10.95]
[1724979126905,3.5574,140.53,140.48,14.5085]
[1724979127111,0.05132143,140.53,140.51,0.04997195]
[1724979127523,3.5576,140.52,140.51,0.04997195]
[1724979128612,0.05132143,140.53,140.51,0.04997195]
[1724979128613,0.05132143,140.53,140.51,10.99997195]
[1724979130110,0.05132143,140.53,140.51,0.04997195]
[1724979130413,0.05132143,140.53,140.51,3.60777195]
[1724979131019,4.7,140.59,140.52,27.33]
[1724979131210,27.33,140.61,140.54,27.33]
[1724979131211,4.7,140.61,140.54,27.33]
[1724979131411,31.85472753,140.63,140.54,27.33]
[1724979131814,4.7,140.64,140.56,27.33]
[1724979132021,3.5555,140.61,140.59,0.04845417]
[1724979132720,3.555,140.63,140.59,0.04845417]
[1724979132919,227.50676166,140.67,140.59,0.04845417]
[1724979133328,232.20676166,140.67,140.59,0.04845417]
[1724979133617,27.33,140.65,140.59,0.04845417]
[1724979134225,3.5553,140.62,140.59,0.04845417]
[1724979140931,86.87690397,140.66,140.59,3.60435417]
[1724979141327,86.58370397,140.66,140.59,0.04845417]
[1724979142229,86.58370397,140.66,140.59,27.37845417]
[1724979142230,3.5544,140.65,140.59,27.37845417]
[1724979143336,90.13790397,140.66,140.59,27.37845417]
[1724979143537,90.13790397,140.66,140.6,1.2694]
[1724979145339,86.58370397,140.66,140.6,4.8248]
[1724979145533,86.58370397,140.66,140.6,3.5554]
[1724979145732,3.5547,140.64,140.59,0.04845417]
[1724979145932,3.5547,140.64,140.59,3.60415417]
[1724979146837,3.555,140.63,140.59,3.60415417]
[1724979147238,3.5547,140.64,140.59,3.60415417]
[1724979149438,3.5547,140.64,140.6,3.5556]
[1724979151045,3.5547,140.64,140.59,3.60425417]
[1724979151437,3.5549,140.63,140.59,3.60425417]
[1724979153045,118.61370397,140.66,140.59,0.04845417]
[1724979154041,3.5551,140.62,140.59,0.04845417]
[1724979156743,3.5555,140.61,140.59,0.04845417]
[1724979159649,3.555,140.63,140.59,0.04845417]
[1724979160153,3.555,140.63,140.59,3.60415417]
[1724979160340,91.30370397,140.66,140.59,3.60415417]
[1724979160951,3.555,140.63,140.59,3.60415417]
[1724979163349,91.30370397,140.66,140.59,0.04845417]
[1724979163551,91.30370397,140.66,140.6,3.5554]
[1724979164347,3.5548,140.64,140.6,3.5554]
[1724979164547,91.30370397,140.66,140.59,3.60425417]
[1724979166445,3.5549,140.63,140.59,3.60425417]
[1724979168153,3.5549,140.63,140.6,10.92]
[1724979168551,3.5551,140.62,140.6,10.92]
[1724979168855,3.5551,140.62,140.59,0.04845417]
[1724979172352,3.5554,140.61,140.59,0.04845417]
[1724979180368,3.5556,140.6,140.59,0.04845417]
[1724979180566,10.92,140.58,140.51,10.92]
[1724979180768,14.44226511,140.58,140.51,10.92]
[1724979180968,3.557,140.55,140.51,14.4778]
[1724979181463,0.04767717,140.54,140.52,0.04671207]
[1724979184661,3.60477717,140.54,140.52,0.04671207]
[1724979188071,3.5574,140.53,140.52,0.04671207]
[1724979192477,3.60487717,140.54,140.52,0.04671207]
[1724979193765,3.5574,140.53,140.52,0.04671207]
[1724979197779,14.4774,140.53,140.52,0.04671207]
[1724979198278,3.5587,140.48,140.44,3.5596]
[1724979199387,0.04570867,140.47,140.45,0.05443969]
[1724979200887,3.60470867,140.47,140.45,0.05443969]
[1724979201391,0.04570867,140.47,140.45,10.97443969]
[1724979201883,0.04570867,140.47,140.45,14.53373969]
[1724979203684,0.04570867,140.47,140.45,3.61373969]
[1724979204078,0.04570867,140.47,140.45,14.53373969]
[1724979209092,0.04570867,140.47,140.46,3.5591]
[1724979215993,0.04570867,140.47,140.46,14.4791]
[1724979216196,10.92,140.54,140.46,10.92]
[1724979216391,10.92,140.54,140.48,10.92]
[1724979217093,0.05007227,140.52,140.5,0.04810447]
[1724979217390,3.60787227,140.52,140.5,0.04810447]
[1724979220098,0.05007227,140.52,140.5,0.04810447]
[1724979222487,0.05007227,140.52,140.5,3.60620447]
[1724979223697,0.05007227,140.52,140.51,3.5579]
[1724979224897,0.05007227,140.52,140.5,3.60610447]
[1724979226301,0.05007227,140.52,140.5,0.04810447]
[1724979229102,3.60777227,140.52,140.5,0.04810447]
[1724979230006,0.05007227,140.52,140.5,0.04810447]
[1724979230993,3.60787227,140.52,140.5,0.04810447]
[1724979231307,0.05007227,140.52,140.5,0.04810447]
[1724979232703,14.4779,140.51,140.5,0.04810447]
[1724979232898,10.92,140.51,140.43,8.26765342]
[1724979233101,10.92,140.49,140.43,3.62765342]
[1724979233899,0.05460148,140.48,140.45,3.61005498]
[1724979239402,3.61330148,140.48,140.45,3.61005498]
[1724979241804,3.61330148,140.48,140.45,0.05085498]
[1724979243203,3.61330148,140.48,140.45,3.61015498]
[1724979247507,3.61330148,140.48,140.45,0.05085498]
[1724979249409,3.61330148,140.48,140.45,3.61025498]
[1724979256115,3.59628138,140.57,140.45,10.97085498]
[1724979256315,10.92,140.54,140.47,10.92]
[1724979256515,10.92,140.53,140.45,10.92]
[1724979256920,3.5578,140.52,140.48,3.5585]
[1724979257221,0.04357526,140.51,140.49,0.04851781]
[1724979259728,0.04357526,140.51,140.49,3.60681781]
[1724979260330,0.04357526,140.51,140.49,0.04851781]
[1724979260625,10.96357526,140.51,140.49,0.04851781]
[1724979262632,10.92,140.5,140.49,0.04851781]
[1724979263125,14.4781,140.5,140.49,0.04851781]
[1724979264627,3.5581,140.5,140.49,0.04851781]
[1724979264836,14.4781,140.5,140.49,0.04851781]
[1724979265129,0.04357526,140.51,140.49,0.04851781]
[1724979270837,3.60157526,140.51,140.49,0.04851781]
[1724979271037,0.04357526,140.51,140.49,0.04851781]
[1724979271532,3.60167526,140.51,140.49,0.04851781]
[1724979271935,10.92,140.5,140.49,0.04851781]
[1724979274042,14.4781,140.5,140.49,0.04851781]
[1724979274944,3.5581,140.5,140.49,0.04851781]
[1724979279046,14.4781,140.5,140.49,0.04851781]
[1724979288758,3.5581,140.5,140.49,0.04851781]
[1724979288954,14.4781,140.5,140.49,0.04851781]
[1724979290655,3.5581,140.5,140.49,0.04851781]
[1724979292362,3.5581,140.5,140.49,16.33063282]
[1724979293557,10.96357526,140.51,140.49,16.33063282]
[1724979293558,3.60157526,140.51,140.49,16.33063282]
[1724979293760,0.04357526,140.51,140.49,16.33063282]
[1724979296260,4.64,140.56,140.5,16.18945715]
[1724979296559,10.92,140.53,140.51,16.18945715]
[1724979296767,10.92,140.53,140.49,16.28211501]
[1724979297354,14.4776,140.53,140.5,0.047878]
[1724979297554,3.15006393,140.53,140.5,16.32999301]
[1724979297762,7.53618894,140.52,140.5,27.24999301]
[1724979297972,88.15927694,140.59,140.5,27.20211501]
[1724979297973,10.92,140.57,140.5,27.20211501]
[1724979298280,7.53543992,140.56,140.51,21.12681501]
[1724979298487,7.53543992,140.55,140.51,4.8447]
[1724979298777,3.5568,140.56,140.51,4.8447]
[1724979299076,3.5568,140.56,140.52,3.5576]
[1724979303065,14.4769,140.55,140.51,4.8448]
[1724979303375,10.92,140.53,140.52,0.05276973]
[1724979304379,14.4774,140.53,140.52,0.05276973]
[1724979309879,3.5574,140.53,140.52,0.05276973]
[1724979314680,3.5584,140.49,140.47,2.6079]
[1724979314876,14.4784,140.49,140.42,10.92]
[1724979315074,14.4784,140.49,140.42,13.6165]
[1724979315681,0.04809663,140.47,140.45,0.05331879]
[1724979316987,0.04809663,140.47,140.46,3.5591]
[1724979317287,0.04809663,140.47,140.45,0.05331879]
[1724979317988,0.04809663,140.47,140.45,3.61261879]
[1724979325491,0.04809663,140.47,140.45,0.05331879]
[1724979327097,0.04809663,140.47,140.46,3.5591]
[1724979328298,3.5582,140.5,140.46,14.4791]
[1724979329597,3.558,140.51,140.46,14.4791]
[1724979329901,10.92,140.52,140.47,6.2084]
[1724979330200,10.92,140.52,140.48,0.05094822]
[1724979330794,14.4779,140.52,140.48,0.05094822]
[1724979331601,3.558,140.51,140.48,0.05094822]
[1724979332003,10.92,140.52,140.48,0.05094822]
[1724979332199,3.5581,140.51,140.48,0.05094822]
[1724979340095,14.4776,140.52,140.48,3.60954822]
[1724979341205,3.5576,140.52,140.48,3.60954822]
[1724979346503,10.92,140.53,140.48,3.60954822]
[1724979346504,14.4775,140.53,140.48,3.60954822]
[1724979349908,3.5576,140.52,140.48,3.60954822]
[1724979350606,10.92,140.53,140.48,3.60954822]
[1724979350607,14.4775,140.53,140.48,3.60954822]
[1724979351202,14.4775,140.53,140.49,3.5583]
[1724979351407,3.5572,140.54,140.49,10.92]
[1724979351807,3.5572,140.54,140.5,3.558]
[1724979352618,10.92,140.6,140.53,10.92]
[1724979352910,10.92,140.61,140.56,10.92]
[1724979353216,267.68,140.68,140.57,3.60884651]
[1724979353217,3.5553,140.62,140.57,3.60884651]
[1724979353409,3.5553,140.62,140.58,0.05262964]
[1724979354916,10.92,140.6,140.58,0.05262964]
[1724979357709,3.5554,140.61,140.58,0.05262964]
[1724979357908,14.4754,140.61,140.58,0.05262964]
[1724979361612,3.5556,140.6,140.58,0.05262964]
[1724979361918,10.92,140.61,140.58,0.05262964]
[1724979362110,3.5558,140.6,140.58,0.05262964]
[1724979364613,3.5559,140.59,140.58,0.05262964]
[1724979364817,10.92,140.58,140.51,15.54]
[1724979365115,3.5564,140.57,140.52,3.5575]
[1724979365715,0.05207501,140.56,140.53,0.04908922]
[1724979365920,3.60867501,140.56,140.53,0.04908922]
[1724979366414,0.05207501,140.56,140.53,0.04908922]
[1724979367409,0.05207501,140.56,140.53,3.60638922]
[1724979368521,0.05207501,140.56,140.53,0.04908922]
[1724979368917,3.60877501,140.56,140.53,0.04908922]
[1724979369125,0.05207501,140.56,140.53,0.04908922]
[1724979371318,3.60877501,140.56,140.53,0.04908922]
[1724979372322,3.5571,140.55,140.53,0.04908922]
[1724979372521,10.97207501,140.56,140.53,0.04908922]
[1724979373817,14.4771,140.54,140.53,0.04908922]
[1724979382435,10.92,140.54,140.42,1.2776]
[1724979382634,10.92,140.51,140.46,3.5591]
[1724979383532,0.04669909,140.5,140.47,0.04940729]
[1724979384832,3.60499909,140.5,140.47,0.04940729]
[1724979390944,10.92,140.49,140.47,0.04940729]
[1724979392253,3.5586,140.48,140.47,0.04940729]
[1724979392757,3.5585,140.49,140.47,0.04940729]
[1724979400864,3.5586,140.48,140.47,0.04940729]
[1724979403464,3.5586,140.49,140.47,0.04940729]
[1724979411966,10.96669909,140.5,140.47,0.04940729]
[1724979411967,0.04669909,140.5,140.47,0.04940729]
[1724979412173,0.04669909,140.5,140.47,10.96940729]
[1724979412969,0.04669909,140.5,140.48,3.5586]
[1724979415064,224.0,140.6,140.49,3.5584]
[1724979415269,10.92,140.57,140.5,10.92]
[1724979415674,10.92,140.57,140.5,15.54]
[1724979415875,14.4765,140.57,140.52,3.5574]
[1724979416371,0.04730278,140.56,140.53,0.05303318]
[1724979417072,0.04730278,140.56,140.53,3.61033318]
[1724979418673,0.04730278,140.56,140.54,3.557]
[1724979419679,10.96730278,140.56,140.53,0.05303318]
[1724979420178,14.52400278,140.56,140.53,0.05303318]
[1724979420677,10.96730278,140.56,140.53,0.05303318]
[1724979420979,43.68,140.54,140.43,4.62]
[1724979421179,10.92,140.48,140.42,5.9032]
[1724979421476,10.92,140.48,140.43,1.3812]
[1724979421874,0.04642525,140.47,140.44,0.05301907]
[1724979423767,0.04642525,140.47,140.45,10.92]
[1724979424079,0.04642525,140.47,140.45,1.3128]
[1724979424873,0.04642525,140.47,140.45,4.8722]
[1724979425576,14.4781,140.51,140.45,15.7922]
[1724979426781,0.05442591,140.49,140.45,4.8722]
[1724979426978,0.05442591,140.49,140.45,1.3128]
[1724979433573,10.97442591,140.49,140.45,1.3128]
[1724979433986,3.5587,140.48,140.45,1.3128]
[1724979434284,10.97442591,140.49,140.45,1.3128]
[1724979434479,10.97442591,140.49,140.44,0.05301907]
[1724979434983,3.5587,140.48,140.44,0.05301907]
[1724979438886,3.5587,140.48,140.44,3.61261907]
[1724979440890,3.5589,140.47,140.44,3.61261907]
[1724979442491,3.5594,140.45,140.44,0.05301907]
[1724979442792,14.4794,140.45,140.44,0.05301907]
[1724979445987,14.4794,140.45,140.37,2.6748]
[1724979445988,3.5602,140.42,140.37,2.6748]
[1724979446195,14.4802,140.42,140.37,6.2361]
[1724979446595,3.5604,140.41,140.37,6.2361]
[1724979446894,0.04668053,140.4,140.38,0.04759364]
[1724979447095,3.60748053,140.4,140.38,0.04759364]
[1724979447984,14.4809,140.39,140.38,0.04759364]
[1724979453091,3.5616,140.37,140.32,9.546]
[1724979453294,10.92,140.36,140.32,4.926]
[1724979453689,10.92,140.35,140.26,1.3912]
[1724979453888,10.92,140.35,140.28,10.92]
[1724979454093,10.92,140.35,140.29,10.92]
[1724979454297,0.05056924,140.32,140.3,0.04757254]
[1724979455411,0.05056924,140.32,140.3,3.61077254]
[1724979464095,0.05056924,140.32,140.31,3.563]
[1724979482318,0.05056924,140.32,140.31,14.483]
[1724979483619,0.05056924,140.32,140.31,3.563]
[1724979484116,0.05056924,140.32,140.3,0.04757254]
[1724979485319,0.05056924,140.32,140.3,3.61057254]
[1724979486124,0.05056924,140.32,140.3,0.04757254]
[1724979487723,10.97056924,140.32,140.3,0.04757254]
[1724979489421,14.53336924,140.32,140.3,0.04757254]
[1724979490627,3.563,140.31,140.3,0.04757254]
[1724979494426,10.97056924,140.32,140.3,0.04757254]
[1724979494733,0.05056924,140.32,140.24,4.62]
[1724979494934,3.5635,140.29,140.22,10.92]
[1724979495139,10.92,140.3,140.22,10.92]
[1724979495637,10.92,140.29,140.23,3.64047144]
[1724979495835,0.05317289,140.27,140.25,0.0525756]
[1724979503332,0.05317289,140.27,140.25,3.6169756]
[1724979503540,0.05317289,140.27,140.25,0.0525756]
[1724979504732,0.05317289,140.27,140.26,3.5642]
[1724979504939,0.05317289,140.27,140.25,0.0525756]
[1724979506032,0.05317289,140.27,140.25,3.6168756]
[1724979507436,0.05317289,140.27,140.25,0.0525756]
[1724979509336,3.61737289,140.27,140.25,0.0525756]
[1724979510253,3.5642,140.26,140.25,0.0525756]
[1724979512751,3.61727289,140.27,140.25,0.0525756]
[1724979519551,0.05317289,140.27,140.25,0.0525756]
[1724979519756,3.5642,140.26,140.25,0.0525756]
[1724979521756,3.61717289,140.27,140.25,0.0525756]
[1724979522062,0.05317289,140.27,140.25,0.0525756]
[1724979522953,3.61717289,140.27,140.25,0.0525756]
[1724979523156,0.05317289,140.27,140.25,0.0525756]
[1724979525158,10.92,140.29,140.25,0.0525756]
[1724979525159,3.563,140.31,140.27,3.564]
[1724979525361,3.563,140.31,140.27,11.81072346]
[1724979525653,3.563,140.31,140.27,8.24672346]
[1724979526257,0.05432355,140.3,140.28,0.05469627]
[1724979529770,0.05432355,140.3,140.28,3.61829627]
[1724979530764,0.05432355,140.3,140.29,3.5635]
[1724979534564,80.73158545,140.36,140.29,10.92]
[1724979534764,80.73158545,140.36,140.31,10.92]
[1724979534955,80.73158545,140.36,140.32,10.92]
[1724979535157,335.0,140.43,140.34,10.92]
[1724979535472,10.92,140.42,140.35,10.92]
[1724979535660,10.92,140.42,140.37,0.04538344]
[1724979535661,0.04601929,140.4,140.37,0.04538344]
[1724979537765,14.52671929,140.4,140.37,0.04538344]
[1724979540170,10.96601929,140.4,140.37,0.04538344]
[1724979542272,14.52691929,140.4,140.37,0.04538344]
[1724979563180,3.60691929,140.4,140.37,0.04538344]
[1724979564379,14.4811,140.39,140.37,0.04538344]
[1724979564782,3.5611,140.39,140.37,0.04538344]
[1724979565675,14.52671929,140.4,140.37,0.04538344]
[1724979565880,3.60671929,140.4,140.37,0.04538344]
[1724979572685,0.04601929,140.4,140.38,3.5611]
[1724979573387,0.04601929,140.4,140.37,4.64538344]
[1724979573581,0.04601929,140.4,140.37,0.04538344]
[1724979574288,3.60691929,140.4,140.37,0.04538344]
[1724979575493,3.5611,140.39,140.37,0.04538344]
[1724979602105,14.4812,140.38,140.37,0.04538344]
[1724979602314,3.5612,140.38,140.37,0.04538344]
[1724979603808,0.04601929,140.4,140.37,0.04538344]
[1724979605599,0.04601929,140.4,140.38,3.12304022]
[1724979605804,3.60671929,140.4,140.38,6.246431]
[1724979606001,3.60671929,140.4,140.38,3.12304022]
[1724979607110,0.04601929,140.4,140.38,3.12304022]
[1724979609809,3.60681929,140.4,140.38,3.12304022]
[1724979610204,0.04601929,140.4,140.38,3.12304022]
[1724979610700,0.04601929,140.4,140.37,0.04538344]
[1724979610904,0.04601929,140.4,140.38,3.12507043]
[1724979611104,0.04601929,140.4,140.37,14.52678344]
[1724979611306,0.04601929,140.4,140.38,3.12603444]
[1724979611509,0.04601929,140.4,140.37,14.52678344]
[1724979611811,0.04601929,140.4,140.38,3.12596736]
[1724979612116,0.04601929,140.4,140.37,14.52678344]
[1724979612408,0.04601929,140.4,140.38,8.9983974]
[1724979612605,0.04601929,140.4,140.39,3.12483194]
[1724979621507,0.04601929,140.4,140.37,3.60668344]
[1724979621708,0.04601929,140.4,140.38,8.99881095]
[1724979621916,0.04601929,140.4,140.39,3.12492437]
[1724979627925,0.04601929,140.4,140.37,3.60668344]
[1724979628319,0.04601929,140.4,140.38,9.00023528]
[1724979628524,0.04601929,140.4,140.39,3.12545373]
[1724979629224,3.60671929,140.4,140.37,0.04538344]
[1724979629427,3.60671929,140.4,140.38,3.12707873]
[1724979629621,3.60671929,140.4,140.37,0.04538344]
[1724979630527,3.60671929,140.4,140.38,3.12614702]
[1724979630835,3.60671929,140.4,140.39,3.12614702]
[1724979631134,0.04601929,140.4,140.37,0.04538344]
[1724979631312,0.04601929,140.4,140.38,3.12660154]
[1724979631513,0.04601929,140.4,140.37,0.04538344]
[1724979631730,0.04601929,140.4,140.38,3.12660155]
[1724979631923,0.04601929,140.4,140.37,0.04538344]
[1724979632121,0.04601929,140.4,140.38,3.12665933]
[1724979632329,0.04601929,140.4,140.37,0.04538344]
[1724979632627,0.04601929,140.4,140.38,3.12709078]
[1724979632929,0.04601929,140.4,140.37,0.04538344]
[1724979633130,0.04601929,140.4,140.38,3.12709974]
[1724979633426,0.04601929,140.4,140.37,0.04538344]
[1724979633616,0.04601929,140.4,140.38,3.12738937]
[1724979633815,0.04601929,140.4,140.37,0.04538344]
[1724979634019,0.04601929,140.4,140.38,3.12738936]
[1724979634221,0.04601929,140.4,140.37,0.04538344]
[1724979634625,0.04601929,140.4,140.38,3.12749887]
[1724979634827,0.04601929,140.4,140.37,0.04538344]
[1724979635026,0.04601929,140.4,140.38,3.1275044]
[1724979635221,0.04601929,140.4,140.37,0.04538344]
[1724979635418,0.04601929,140.4,140.38,3.12752708]
[1724979635618,0.04601929,140.4,140.37,0.04538344]
[1724979635827,0.04601929,140.4,140.38,3.12771238]
[1724979636027,0.04601929,140.4,140.37,0.04538344]
[1724979636324,0.04601929,140.4,140.38,3.12771928]
[1724979636628,0.04601929,140.4,140.37,0.04538344]
[1724979636824,0.04601929,140.4,140.38,3.12776928]
[1724979637027,0.04601929,140.4,140.37,0.04538344]
[1724979637226,0.04601929,140.4,140.38,3.12778344]
[1724979637421,0.04601929,140.4,140.37,0.04538344]
[1724979637621,0.04601929,140.4,140.38,3.12774804]
[1724979637827,0.04601929,140.4,140.37,0.04538344]
[1724979638015,0.04601929,140.4,140.38,3.12776585]
[1724979638221,0.04601929,140.4,140.37,0.04538344]
[1724979638425,0.04601929,140.4,140.38,3.12775203]
[1724979638621,0.04601929,140.4,140.37,0.04538344]
[1724979638825,0.04601929,140.4,140.38,3.12773438]
[1724979639021,0.04601929,140.4,140.37,0.04538344]
[1724979639321,0.04601929,140.4,140.38,3.12779217]
[1724979639526,0.04601929,140.4,140.37,0.04538344]
[1724979639721,0.04601929,140.4,140.38,3.12779217]
[1724979639920,0.04601929,140.4,140.37,0.04538344]
[1724979640230,0.04601929,140.4,140.38,3.12776184]
[1724979640426,0.04601929,140.4,140.37,0.04538344]
[1724979640621,0.04601929,140.4,140.38,3.12776184]
[1724979640821,0.04601929,140.4,140.37,0.04538344]
[1724979641022,3.5609,140.39,140.38,3.12784525]
[1724979641225,3.5609,140.39,140.37,0.04538344]
[1724979644024,3.5612,140.38,140.37,0.04538344]
[1724979644424,3.5612,140.38,140.37,3.17399728]
[1724979647668,3.5612,140.38,140.37,0.04538344]
[1724979650949,3.5612,140.38,140.37,3.17313966]
[1724979652848,3.5612,140.38,140.37,0.04538344]
[1724979654148,0.04601929,140.4,140.37,10.96538344]
[1724979654354,0.04601929,140.4,140.38,10.92]
[1724979654653,0.04601929,140.4,140.38,13.5149]
[1724979654956,0.04601929,140.4,140.39,3.1254224]
[1724979655953,10.96601929,140.4,140.37,0.04538344]
[1724979656346,10.96601929,140.4,140.38,3.12722924]
[1724979656556,10.96601929,140.4,140.37,0.04538344]
[1724979656760,14.52681929,140.4,140.37,0.04538344]
[1724979658553,3.561,140.39,140.37,0.04538344]
[1724979659953,10.96601929,140.4,140.37,0.04538344]
[1724979660354,3.5612,140.38,140.37,0.04538344]
[1724979660760,3.5612,140.38,140.37,3.17068642]
[1724979660961,3.5612,140.38,140.37,0.04538344]
[1724979663269,3.5617,140.36,140.31,2.6488]
[1724979663555,3.5617,140.36,140.32,19.92084168]
[1724979663756,3.5614,140.38,140.35,10.92]
[1724979663960,15.5,140.4,140.35,10.92]
[1724979664462,0.05115491,140.39,140.36,0.04528277]
[1724979665254,3.5616,140.37,140.36,0.04528277]
[1724979678572,0.05115491,140.39,140.36,30.86676134]
[1724979678775,3.54278168,140.43,140.36,33.99351465]
[1724979678967,16.80946274,140.42,140.37,30.82147857]
[1724979679167,15.5,140.42,140.38,33.94823188]
[1724979679368,15.5,140.42,140.39,33.94823188]
[1724979679576,3.5604,140.41,140.4,33.94823188]
[1724979679777,3.5604,140.41,140.4,24.94471707]
[1724979679778,14.4804,140.41,140.4,24.94471707]
[1724979680077,14.4804,140.41,140.4,38.4158095]
[1724979681974,10.92,140.41,140.33,1.2839]
[1724979682277,8.17911276,140.43,140.33,1.2839]
[1724979682278,10.92,140.38,140.34,23.40049398]
[1724979682474,3.5615,140.37,140.33,1.2839]
[1724979682778,3.5615,140.37,140.33,12.2039]
[1724979682979,0.04836408,140.36,140.34,18.38665586]
[1724979683177,4.58,140.41,140.34,10.96526329]
[1724979683479,3.5607,140.4,140.34,14.482]
[1724979683674,10.92,140.4,140.34,19.062]
[1724979683870,3.5612,140.38,140.34,4.58]
[1724979684072,10.92,140.39,140.33,12.2039]
[1724979684269,0.05083435,140.37,140.35,0.05370674]
[1724979701999,3.61233435,140.37,140.35,0.05370674]
[1724979709997,0.05083435,140.37,140.35,0.05370674]
[1724979710513,3.5603,140.42,140.36,14.4817]
[1724979710801,3.5603,140.42,140.37,10.92]
[1724979711007,8.14,140.43,140.37,15.8363]
[1724979711199,79.43061338,140.45,140.4,10.92]
[1724979711406,74.85061338,140.45,140.4,10.92]
[1724979711705,0.04692767,140.44,140.42,10.92]
[1724979711899,0.04692767,140.44,140.42,2.71706078]
[1724979712401,0.04692767,140.44,140.42,0.05306078]
[1724979713004,3.5599,140.43,140.42,0.05306078]
[1724979713204,14.4799,140.43,140.42,0.05306078]
[1724979714502,19.0599,140.43,140.42,0.05306078]
[1724979714802,14.4799,140.43,140.42,0.05306078]
[1724979715003,3.5608,140.4,140.37,3.05938264]
[1724979715204,3.5608,140.4,140.35,10.92]
[1724979715508,3.5608,140.4,140.36,3.05964136]
[1724979715707,3.5608,140.4,140.35,10.92]
[1724979715906,0.05117147,140.39,140.36,3.10812803]
[1724979716100,0.05117147,140.39,140.36,0.04834554]
[1724979720607,0.05117147,140.39,140.36,10.96834554]